bitfinex/quotes_BTCUSD_20240721
["timestamp","ask_amount","ask_price","bid_price","bid_amount"]
[1721563210217,0.14104,66957.0,66956.0,0.5940587]
[1721563212008,0.14104,66957.0,66956.0,0.59405911]
[1721563212399,0.14104,66957.0,66956.0,0.5940591]
[1721563215101,0.14104,66957.0,66956.0,0.58406125]
[1721563215332,0.14104,66957.0,66956.0,0.57206125]
[1721563215556,0.14104,66957.0,66956.0,0.59406125]
[1721563216098,0.14104,66957.0,66956.0,0.58206125]
[1721563216720,0.14104,66957.0,66956.0,0.59406125]
[1721563216927,0.14104,66957.0,66956.0,0.60406125]
[1721563218134,0.14054,66957.0,66956.0,0.60406125]
[1721563218413,0.15264653,66957.0,66956.0,0.60406156]
[1721563218618,0.15264653,66957.0,66956.0,0.480054]
[1721563218772,0.15264653,66957.0,66956.0,0.60406161]
[1721563221661,0.15264653,66957.0,66956.0,0.60406179]
[1721563222065,0.15264653,66957.0,66956.0,0.6040618]
[1721563222798,0.15264653,66957.0,66956.0,0.6049858]
[1721563224666,0.14054,66957.0,66956.0,0.480978]
[1721563224870,0.15264392,66957.0,66956.0,0.60498495]
[1721563225068,0.14054,66957.0,66956.0,0.60498495]
[1721563227779,0.14054,66957.0,66956.0,0.480978]
[1721563227986,0.14054,66957.0,66956.0,0.60498492]
[1721563228587,0.14054,66957.0,66956.0,0.90368792]
[1721563228588,0.00034,66957.0,66956.0,0.90368792]
[1721563229534,0.00034,66957.0,66956.0,0.89168792]
[1721563229962,0.00034,66957.0,66956.0,0.90368792]
[1721563230491,0.00034,66957.0,66956.0,0.88368792]
[1721563231215,0.00034,66957.0,66956.0,0.88368513]
[1721563231425,0.00034,66957.0,66956.0,0.87168513]
[1721563231864,0.00034,66957.0,66956.0,1.33676987]
[1721563232076,0.00034,66957.0,66956.0,1.67397372]
[1721563232481,0.00034,66957.0,66956.0,1.66197372]
[1721563232858,0.00034,66957.0,66956.0,1.67397372]
[1721563233293,0.00034,66957.0,66956.0,1.65197372]
[1721563233707,0.00034,66957.0,66956.0,1.66197372]
[1721563234065,0.00034,66957.0,66956.0,1.35196574]
[1721563234269,0.00034,66957.0,66956.0,1.66194504]
[1721563234883,0.00034,66957.0,66956.0,1.67594504]
[1721563235047,0.00034,66957.0,66956.0,1.66594504]
[1721563235717,0.00034,66957.0,66956.0,1.65194504]
[1721563236121,0.00034,66957.0,66956.0,1.66594504]
[1721563236258,0.00034,66957.0,66956.0,1.67994504]
[1721563237298,0.00034,66957.0,66956.0,1.6799397]
[1721563237904,0.00034,66957.0,66956.0,1.6659397]
[1721563238534,0.00034,66957.0,66956.0,1.9646427]
[1721563238758,0.00034,66957.0,66956.0,2.0646427]
[1721563238977,0.00034,66957.0,66956.0,2.0506427]
[1721563239180,0.00034,66957.0,66956.0,2.0646427]
[1721563239495,0.00034,66957.0,66956.0,2.0786427]
[1721563240572,0.00034,66957.0,66956.0,2.07864072]
[1721563241246,0.00034,66957.0,66956.0,2.12336526]
[1721563241447,0.00034,66957.0,66956.0,2.1923306]
[1721563243050,0.00034,66957.0,66956.0,2.15597606]
[1721563243508,0.00034,66957.0,66956.0,2.15597275]
[1721563243728,0.00034,66957.0,66956.0,2.15597199]
[1721563244362,0.00034,66957.0,66956.0,2.22305881]
[1721563245937,0.00034,66957.0,66956.0,2.27305881]
[1721563246907,0.00034,66957.0,66956.0,2.27306982]
[1721563247508,0.00034,66957.0,66956.0,2.60415029]
[1721563248571,0.00034,66957.0,66956.0,2.54594878]
[1721563249348,0.00034,66957.0,66956.0,2.63541306]
[1721563249648,0.00034,66957.0,66956.0,2.54594878]
[1721563250091,0.00034,66957.0,66956.0,2.35996062]
[1721563250297,0.00034,66957.0,66956.0,2.54593778]
[1721563250505,0.00034,66957.0,66956.0,2.54591434]
[1721563250918,0.00034,66957.0,66956.0,2.65772544]
[1721563251313,0.00034,66957.0,66956.0,2.54591434]
[1721563251930,0.00034,66957.0,66956.0,2.49591434]
[1721563253134,0.00034,66957.0,66956.0,1.78980078]
[1721563253339,0.00034,66957.0,66956.0,2.43081028]
[1721563254306,0.00034,66957.0,66956.0,2.52021553]
[1721563255327,0.00034,66957.0,66956.0,2.43521883]
[1721563255529,0.00034,66957.0,66956.0,2.27684824]
[1721563255732,0.00034,66957.0,66956.0,2.34390445]
[1721563256296,0.00034,66957.0,66956.0,2.27687325]
[1721563256496,0.00034,66957.0,66956.0,2.34392974]
[1721563259514,0.00034,66957.0,66956.0,1.82687711]
[1721563259871,0.00034,66957.0,66956.0,1.63583874]
[1721563260086,0.00034,66957.0,66956.0,2.3439262]
[1721563261920,0.00034,66957.0,66956.0,2.34392621]
[1721563262528,0.00034,66957.0,66956.0,2.34393039]
[1721563263919,0.00034,66957.0,66956.0,1.94579947]
[1721563264098,0.00034,66957.0,66956.0,2.34393666]
[1721563265048,0.00034,66957.0,66956.0,2.34393039]
[1721563265276,0.13934,66957.0,66956.0,2.27687325]
[1721563265485,0.13934,66957.0,66956.0,1.93742947]
[1721563267643,0.13934,66957.0,66956.0,1.63872647]
[1721563268156,0.13934,66957.0,66956.0,1.63876247]
[1721563271324,0.13934,66957.0,66956.0,1.32876574]
[1721563271554,0.13934,66957.0,66956.0,1.638759]
[1721563271755,0.13934,66957.0,66956.0,1.32876574]
[1721563272008,0.13934,66957.0,66956.0,1.63876011]
[1721563274612,0.13934,66957.0,66956.0,1.63876299]
[1721563274826,0.13934,66957.0,66956.0,1.34005999]
[1721563276639,0.13934,66957.0,66956.0,1.29235624]
[1721563277239,0.13934,66957.0,66956.0,1.05406164]
[1721563277590,0.13934,66957.0,66956.0,0.93006274]
[1721563277805,0.13934,66957.0,66956.0,0.60097936]
[1721563278705,0.13934,66957.0,66956.0,0.60098541]
[1721563281340,0.13934,66957.0,66956.0,0.476978]
[1721563281516,0.14034065,66957.0,66956.0,0.60098541]
[1721563281718,0.13934,66957.0,66956.0,0.60098541]
[1721563283901,0.15057012,66957.0,66956.0,0.60098544]
[1721563284171,0.15057012,66957.0,66956.0,0.60098545]
[1721563284965,0.15057012,66957.0,66956.0,0.58698545]
[1721563285170,0.15057012,66957.0,66956.0,0.59898545]
[1721563285577,0.15057012,66957.0,66956.0,0.30028245]
[1721563285782,0.15057012,66957.0,66956.0,0.28828245]
[1721563286187,0.15057012,66957.0,66956.0,0.29628245]
[1721563286942,0.15057012,66957.0,66956.0,0.28228245]
[1721563287408,0.15057012,66957.0,66956.0,0.165275]
[1721563287609,0.15057012,66957.0,66956.0,0.28228247]
[1721563288016,0.15057012,66957.0,66956.0,0.28928247]
[1721563288221,0.15057012,66957.0,66956.0,0.27428247]
[1721563289312,0.15057012,66957.0,66956.0,0.28328247]
[1721563289518,0.15057012,66957.0,66956.0,0.29228247]
[1721563289727,0.15057012,66957.0,66956.0,0.29928247]
[1721563290135,0.15057012,66957.0,66956.0,0.29228247]
[1721563290352,0.15057012,66957.0,66956.0,0.29928247]
[1721563290974,0.15057012,66957.0,66956.0,0.2992825]
[1721563291330,0.15057012,66957.0,66956.0,0.2812825]
[1721563291756,0.15057012,66957.0,66956.0,0.2902825]
[1721563293961,0.15057012,66957.0,66956.0,0.1409315]
[1721563294160,0.15460478,66957.0,66956.0,0.1409315]
[1721563295217,0.15460478,66957.0,66956.0,0.1249315]
[1721563295371,0.15460478,66957.0,66956.0,0.1319315]
[1721563295573,0.15460478,66957.0,66956.0,0.1409315]
[1721563295954,0.15460478,66957.0,66956.0,0.1319315]
[1721563296381,0.15460478,66957.0,66956.0,0.1409315]
[1721563296783,0.15460478,66957.0,66956.0,0.1339315]
[1721563297083,0.15460478,66957.0,66956.0,0.14094249]
[1721563297257,0.15460478,66957.0,66956.0,0.13394249]
[1721563297844,0.15460478,66957.0,66956.0,0.14094249]
[1721563298356,0.15460478,66957.0,66956.0,0.13194249]
[1721563298709,0.15460478,66957.0,66956.0,0.14094249]
[1721563300497,0.15460478,66957.0,66956.0,0.14094072]
[1721563300924,0.15460478,66957.0,66956.0,0.13394072]
[1721563301329,0.15460478,66957.0,66956.0,0.14094072]
[1721563301529,0.15460478,66957.0,66956.0,0.13194072]
[1721563301731,0.15460478,66957.0,66956.0,0.14094072]
[1721563302245,0.15460478,66957.0,66956.0,0.13194072]
[1721563302623,0.15460478,66957.0,66956.0,0.14794072]
[1721563302805,0.15460478,66957.0,66956.0,0.14794114]
[1721563303204,0.15460478,66957.0,66956.0,0.023924]
[1721563303429,0.15460478,66957.0,66956.0,0.14794129]
[1721563309661,0.15460478,66957.0,66956.0,0.023924]
[1721563309857,0.15460478,66957.0,66956.0,0.14794043]
[1721563310057,0.15460478,66957.0,66956.0,0.023924]
[1721563310286,0.15460478,66957.0,66956.0,0.14794043]
[1721563312824,0.15460478,66957.0,66956.0,0.023924]
[1721563313052,0.15460478,66957.0,66956.0,0.14793991]
[1721563313245,0.15460478,66957.0,66956.0,0.29729091]
[1721563313246,0.01560478,66957.0,66956.0,0.29729091]
[1721563313590,0.01560478,66957.0,66956.0,0.59599391]
[1721563313591,0.00034,66957.0,66956.0,0.59599391]
[1721563313705,0.00034,66957.0,66956.0,0.89469691]
[1721563314353,0.00034,66957.0,66956.0,0.88069691]
[1721563314761,0.00034,66957.0,66956.0,0.88969691]
[1721563314967,0.00034,66957.0,66956.0,0.95999691]
[1721563315163,0.00034,66957.0,66956.0,1.17867865]
[1721563315394,0.00034,66957.0,66956.0,2.37671255]
[1721563315615,0.00034,66957.0,66956.0,1.67338712]
[1721563315761,0.00034,66957.0,66956.0,1.71815789]
[1721563315966,0.00034,66957.0,66956.0,1.67338712]
[1721563316228,0.00034,66957.0,66956.0,1.66438712]
[1721563316627,0.00034,66957.0,66956.0,1.67638712]
[1721563316967,0.00034,66957.0,66956.0,1.65438712]
[1721563318025,0.00034,66957.0,66956.0,1.66438712]
[1721563318230,0.00034,66957.0,66956.0,1.65438712]
[1721563318644,0.00034,66957.0,66956.0,1.66838712]
[1721563319079,0.00034,66957.0,66956.0,1.71313089]
[1721563319307,0.00034,66957.0,66956.0,1.73591259]
[1721563319504,0.00034,66957.0,66956.0,1.6911689]
[1721563319704,0.00034,66957.0,66956.0,1.73590961]
[1721563321761,0.00034,66957.0,66956.0,1.73590838]
[1721563323518,0.00034,66957.0,66956.0,2.08461138]
[1721563323736,0.00034,66957.0,66956.0,2.18461138]
[1721563323969,0.00034,66957.0,66956.0,2.13461138]
[1721563324198,0.00034,66957.0,66956.0,2.08987273]
[1721563324402,0.00034,66957.0,66956.0,2.18459871]
[1721563324591,0.00034,66957.0,66956.0,2.13459871]
[1721563324820,0.00034,66957.0,66956.0,2.13459243]
[1721563325668,0.00034,66957.0,66956.0,2.88459243]
[1721563325897,0.00034,66957.0,66956.0,2.53803727]
[1721563326503,0.00034,66957.0,66956.0,2.25292006]
[1721563327325,0.00034,66957.0,66956.0,2.18583319]
[1721563328016,0.00034,66957.0,66956.0,2.18582025]
[1721563329104,0.00034,66957.0,66956.0,2.13582025]
[1721563330308,0.00034,66957.0,66956.0,2.18051076]
[1721563331245,0.00034,66957.0,66956.0,2.18051041]
[1721563331498,0.00084,66967.0,66966.0,0.48142434]
[1721563331707,0.00084,66967.0,66966.0,1.56479339]
[1721563331927,0.00084,66967.0,66966.0,2.55399872]
[1721563332145,0.00084,66967.0,66966.0,2.57632457]
[1721563332358,0.00084,66967.0,66966.0,2.55395531]
[1721563332570,0.00084,66967.0,66966.0,2.85993231]
[1721563332770,0.00084,66967.0,66966.0,3.48993231]
[1721563333210,0.00084,66967.0,66966.0,3.40067233]
[1721563333414,0.00084,66967.0,66966.0,3.48988622]
[1721563334046,0.00084,66967.0,66966.0,3.40067233]
[1721563334252,0.00084,66967.0,66966.0,2.94169899]
[1721563334455,0.00084,66967.0,66966.0,3.56950699]
[1721563334656,0.00084,66967.0,66966.0,3.46006255]
[1721563334785,0.00084,66967.0,66966.0,3.16449641]
[1721563334989,0.00084,66967.0,66966.0,3.09762228]
[1721563335187,0.00084,66967.0,66966.0,3.04762228]
[1721563335388,0.00084,66967.0,66966.0,3.14219871]
[1721563336440,0.00084,66967.0,66966.0,3.09762228]
[1721563337450,0.00084,66967.0,66966.0,2.78777108]
[1721563337694,0.00084,66967.0,66966.0,3.09765631]
[1721563341323,0.00084,66967.0,66966.0,3.10684592]
[1721563343932,0.00084,66967.0,66966.0,3.10684547]
[1721563347019,0.00084,66967.0,66966.0,2.79696069]
[1721563347217,0.00084,66967.0,66966.0,3.10684502]
[1721563350149,0.00084,66967.0,66966.0,3.05684502]
[1721563350355,0.00084,66967.0,66966.0,2.79696069]
[1721563350527,0.00084,66967.0,66966.0,3.1068434]
[1721563351720,0.00084,66967.0,66966.0,3.4055024]
[1721563352316,0.00084,66967.0,66966.0,3.56044376]
[1721563352655,0.00084,66967.0,66966.0,3.60496632]
[1721563352860,0.00084,66967.0,66966.0,3.61333632]
[1721563353534,1e-06,66967.0,66966.0,3.30345361]
[1721563353733,1e-06,66967.0,66966.0,3.56881235]
[1721563353935,1e-06,66967.0,66966.0,3.25893105]
[1721563354138,1e-06,66967.0,66966.0,3.56881235]
[1721563354995,0.00836,66968.0,66967.0,0.09596534]
[1721563355204,0.00836,66968.0,66967.0,3.62181474]
[1721563355475,0.00836,66968.0,66967.0,3.61902074]
[1721563356365,0.00836,66968.0,66967.0,3.63302074]
[1721563356515,0.00836,66968.0,66967.0,3.71386174]
[1721563356718,0.00836,66968.0,66967.0,3.40398044]
[1721563356941,0.00836,66968.0,66967.0,3.71386034]
[1721563357145,0.00836,66968.0,66967.0,4.04484778]
[1721563357557,0.00836,66968.0,66967.0,3.97800678]
[1721563359619,0.00836,66968.0,66967.0,4.06712812]
[1721563359946,0.00836,66968.0,66967.0,4.06719728]
[1721563360339,0.00836,66968.0,66967.0,3.82306467]
[1721563360495,0.00836,66968.0,66967.0,3.97800417]
[1721563363160,0.00836,66968.0,66967.0,3.66812502]
[1721563363332,0.00836,66968.0,66967.0,3.978004]
[1721563363563,0.00836,66968.0,66967.0,3.33713758]
[1721563363735,0.00836,66968.0,66967.0,4.08955416]
[1721563364570,0.00836,66968.0,66967.0,3.97800303]
[1721563366383,0.00836,66968.0,66967.0,3.97796808]
[1721563369671,0.00836,66968.0,66967.0,3.97796962]
[1721563371834,1e-06,66968.0,66967.0,3.97796962]
[1721563372037,0.00837,66969.0,66968.0,2.03719034]
[1721563372206,0.00837,66969.0,66968.0,3.87013762]
[1721563372527,0.00837,66969.0,66968.0,3.86734362]
[1721563372902,0.00837,66969.0,66968.0,3.86734584]
[1721563373306,0.00837,66969.0,66968.0,3.88134273]
[1721563375127,0.00837,66969.0,66968.0,3.89534273]
[1721563375332,0.00837,66969.0,66968.0,4.02936296]
[1721563375965,0.00837,66969.0,66968.0,3.38864313]
[1721563376166,0.00837,66969.0,66968.0,4.02947624]
[1721563376364,0.00837,66969.0,66968.0,3.89534469]
[1721563377533,0.00837,66969.0,66968.0,3.84534469]
[1721563377738,0.00837,66969.0,66968.0,3.89534469]
[1721563378154,0.00837,66969.0,66968.0,3.84534469]
[1721563379200,0.00837,66969.0,66968.0,3.53548136]
[1721563379408,0.00837,66969.0,66968.0,3.84535572]
[1721563380597,0.00837,66969.0,66968.0,3.89535572]
[1721563381630,0.00837,66969.0,66968.0,3.77141774]
[1721563381842,0.00837,66969.0,66968.0,3.89536749]
[1721563382041,0.00837,66969.0,66968.0,3.89536748]
[1721563382686,0.00837,66969.0,66968.0,3.84536748]
[1721563383218,0.00837,66969.0,66968.0,3.89536748]
[1721563383832,0.00837,66969.0,66968.0,3.84536748]
[1721563384041,0.00837,66969.0,66968.0,3.89536748]
[1721563386798,0.00837,66969.0,66968.0,3.97256748]
[1721563387784,0.00837,66969.0,66968.0,3.66269312]
[1721563387988,0.00837,66969.0,66968.0,3.97349149]
[1721563390279,0.00837,66969.0,66968.0,4.03939149]
[1721563391082,0.00837,66969.0,66968.0,3.70840903]
[1721563391282,0.00837,66969.0,66968.0,4.03938959]
[1721563391483,0.00837,66969.0,66968.0,4.10136428]
[1721563399063,0.00837,66969.0,66968.0,4.56473707]
[1721563399822,0.00837,66969.0,66968.0,3.39853558]
[1721563400269,0.00837,66969.0,66968.0,3.46050723]
[1721563400887,0.00837,66969.0,66968.0,3.39853558]
[1721563401274,0.00837,66969.0,66968.0,3.70839401]
[1721563401478,0.00837,66969.0,66968.0,4.03935852]
[1721563401698,0.00837,66969.0,66968.0,3.85344346]
[1721563402125,0.00837,66969.0,66968.0,3.52247895]
[1721563402754,0.00837,66969.0,66968.0,3.89430833]
[1721563403754,0.00837,66969.0,66968.0,3.52247895]
[1721563403945,0.00837,66969.0,66968.0,3.89430612]
[1721563407858,0.00837,66969.0,66968.0,4.22527222]
[1721563410294,0.1441,66997.0,66996.0,0.149262]
[1721563410501,0.1441,66997.0,66996.0,0.75764298]
[1721563410703,0.1565055,66997.0,66996.0,1.35463933]
[1721563410858,0.1441,66997.0,66996.0,1.50902107]
[1721563411060,0.1441,66997.0,66996.0,1.5090039]
[1721563411262,0.1441,66997.0,66996.0,1.8075289]
[1721563411871,0.0643,66997.0,66996.0,1.8075289]
[1721563412297,0.0643,66997.0,66996.0,1.8145289]
[1721563412465,0.0643,66997.0,66996.0,1.8075289]
[1721563412728,0.0643,66997.0,66996.0,1.86120113]
[1721563412930,0.00836,66998.0,66997.0,1.43930534]
[1721563413198,0.00836,66998.0,66997.0,3.12434019]
[1721563413316,0.00836,66998.0,66997.0,3.51212204]
[1721563413695,0.00836,66998.0,66997.0,3.5120802]
[1721563413817,0.00836,66998.0,66997.0,3.51208192]
[1721563414240,0.00836,66998.0,66997.0,3.48973768]
[1721563414443,0.00836,66998.0,66997.0,3.50373768]
[1721563414642,0.00836,66998.0,66997.0,3.51773768]
[1721563414849,0.00836,66998.0,66997.0,3.74628403]
[1721563415062,0.00836,66998.0,66997.0,3.58762847]
[1721563416168,0.00836,66998.0,66997.0,3.54420996]
[1721563416530,0.00836,66998.0,66997.0,3.45993274]
[1721563417171,0.00836,66998.0,66997.0,3.2740717]
[1721563417352,0.00836,66998.0,66997.0,3.3707841]
[1721563418384,0.00836,66998.0,66997.0,3.03993363]
[1721563418588,0.00836,66998.0,66997.0,3.10672875]
[1721563418789,0.00836,66998.0,66997.0,3.03993363]
[1721563419455,0.00836,66998.0,66997.0,3.08445206]
[1721563420314,0.00836,66998.0,66997.0,3.03993363]
[1721563420493,0.00836,66998.0,66997.0,3.08444952]
[1721563420697,0.01239466,67023.0,66997.0,3.08444952]
[1721563420698,1e-06,67003.0,67002.0,2.26980234]
[1721563420904,1e-06,67003.0,67002.0,3.81591803]
[1721563421103,1e-06,67003.0,67002.0,4.2538859]
[1721563421338,1e-06,67003.0,67002.0,4.31974366]
[1721563421957,1e-06,67003.0,67002.0,4.33374366]
[1721563422167,1e-06,67003.0,67002.0,4.17890404]
[1721563422377,1e-06,67003.0,67002.0,3.83885611]
[1721563422616,1e-06,67003.0,67002.0,3.86685611]
[1721563423059,1e-06,67003.0,67002.0,3.85285611]
[1721563423267,0.00836,67017.0,67016.0,1.43892734]
[1721563423471,0.00836,67017.0,67016.0,1.81717228]
[1721563423698,0.00836,67023.0,67020.0,1.09042834]
[1721563423906,1e-06,67021.0,67020.0,3.00430409]
[1721563424154,1e-06,67021.0,67020.0,2.33935866]
[1721563424382,1e-06,67021.0,67020.0,2.25130409]
[1721563424596,1e-06,67021.0,67020.0,1.95288609]
[1721563425216,1e-06,67021.0,67020.0,1.96688609]
[1721563425441,1e-06,67021.0,67020.0,1.95288609]
[1721563425848,1e-06,67021.0,67020.0,1.96688609]
[1721563426253,1e-06,67021.0,67020.0,1.98088609]
[1721563426467,1e-06,67021.0,67020.0,1.98086658]
[1721563426875,1e-06,67021.0,67020.0,1.96686658]
[1721563427091,1e-06,67021.0,67020.0,1.98086658]
[1721563427407,1e-06,67021.0,67020.0,1.99486658]
[1721563427829,1e-06,67021.0,67020.0,1.96686658]
[1721563428110,1e-06,67021.0,67020.0,1.98086658]
[1721563428506,1e-06,67021.0,67020.0,2.03086658]
[1721563428656,1e-06,67021.0,67020.0,2.01686658]
[1721563429019,1e-06,67021.0,67020.0,2.03086658]
[1721563429444,1e-06,67021.0,67020.0,1.72122808]
[1721563429645,1e-06,67021.0,67020.0,2.03086631]
[1721563430303,1e-06,67021.0,67020.0,2.01686631]
[1721563430911,1e-06,67021.0,67020.0,2.03086631]
[1721563431114,1e-06,67021.0,67020.0,2.01686631]
[1721563431314,1e-06,67021.0,67020.0,2.03086631]
[1721563431802,1e-06,67021.0,67020.0,1.98086631]
[1721563432008,1e-06,67021.0,67020.0,1.96686631]
[1721563432202,0.00037566,67037.0,67036.0,0.149173]
[1721563432459,0.00037566,67036.0,67034.0,0.298355]
[1721563432615,0.00037566,67036.0,67035.0,0.27303595]
[1721563432852,0.06617566,67036.0,67035.0,0.27303595]
[1721563433007,0.06617566,67036.0,67035.0,0.57138695]
[1721563433186,0.06617566,67036.0,67035.0,0.447526]
[1721563433394,0.07623599,67036.0,67035.0,0.57138716]
[1721563434833,0.07623599,67036.0,67035.0,0.58338716]
[1721563435211,0.15913599,67036.0,67035.0,0.59638716]
[1721563436036,0.15913599,67036.0,67035.0,0.59638753]
[1721563436390,0.15913599,67036.0,67035.0,0.59638757]
[1721563438375,0.01006033,67036.0,67035.0,0.59638757]
[1721563438586,0.01006033,67036.0,67035.0,1.53324505]
[1721563438939,0.0601,67043.0,67042.0,0.7458]
[1721563439108,0.0601,67043.0,67042.0,1.02404331]
[1721563439371,0.0601,67043.0,67042.0,1.20980611]
[1721563439600,0.0601,67043.0,67042.0,1.20978587]
[1721563440195,0.0601,67043.0,67042.0,1.26192205]
[1721563440394,0.0601,67043.0,67042.0,1.2097887]
[1721563441680,0.0601,67043.0,67042.0,1.2237887]
[1721563442295,0.0601,67043.0,67042.0,0.91418174]
[1721563442449,0.0601,67043.0,67042.0,1.53610944]
[1721563445191,0.0601,67043.0,67042.0,1.53610905]
[1721563446594,0.00037566,67047.0,67042.0,1.38694905]
[1721563446800,0.00037566,67047.0,67046.0,0.745755]
[1721563446981,0.00037566,67047.0,67046.0,1.05536231]
[1721563447243,0.06127566,67047.0,67046.0,1.05536231]
[1721563447451,0.00037566,67051.0,67050.0,1.043994]
[1721563447658,0.00037566,67051.0,67050.0,1.40572287]
[1721563447659,0.06127566,67051.0,67050.0,1.40572287]
[1721563447865,0.00037566,67051.0,67050.0,1.40572287]
[1721563448064,0.06127566,67055.0,67054.0,0.149133]
[1721563448273,0.06127566,67055.0,67054.0,0.80908574]
[1721563448477,0.06127566,67055.0,67054.0,1.05524258]
[1721563448879,0.06127566,67055.0,67054.0,1.35350958]
[1721563449978,0.06127566,67055.0,67054.0,1.06424258]
[1721563450185,0.00648254,67055.0,67054.0,1.06424258]
[1721563450798,0.00648254,67055.0,67054.0,1.07124258]
[1721563451466,0.00648254,67055.0,67054.0,1.07123571]
[1721563451787,0.00648254,67055.0,67054.0,0.761667]
[1721563452164,0.00037566,67055.0,67054.0,1.07123571]
[1721563452907,0.00037566,67055.0,67054.0,1.06223571]
[1721563453126,0.14157566,67055.0,67054.0,1.06223571]
[1721563453328,0.14157566,67055.0,67054.0,1.07123571]
[1721563454366,0.14157566,67055.0,67054.0,1.06423571]
[1721563454575,0.14157566,67055.0,67054.0,0.149133]
[1721563454785,0.14157566,67055.0,67054.0,0.51782845]
[1721563455029,0.14995531,67055.0,67054.0,0.52682845]
[1721563455267,0.14995531,67055.0,67054.0,0.51982845]
[1721563455481,0.14995531,67055.0,67054.0,0.51082845]
[1721563455683,0.14995531,67055.0,67054.0,0.51982845]
[1721563455890,0.14157566,67055.0,67054.0,0.51982845]
[1721563456100,0.14157566,67055.0,67054.0,0.53382845]
[1721563456306,0.14157566,67055.0,67054.0,0.28696419]
[1721563456519,0.14157566,67055.0,67054.0,0.29596419]
[1721563456723,0.14902709,67055.0,67054.0,0.29596419]
[1721563457975,0.14902709,67055.0,67054.0,0.28696502]
[1721563458396,0.07052709,67055.0,67054.0,0.51982683]
[1721563458648,0.07052709,67055.0,67054.0,0.82509383]
[1721563458649,0.06307566,67055.0,67054.0,0.82509383]
[1721563458854,0.06307566,67055.0,67054.0,1.07124301]
[1721563459058,0.06307566,67055.0,67054.0,1.12335613]
[1721563459262,0.06307566,67055.0,67054.0,0.88549902]
[1721563459466,0.06307566,67055.0,67054.0,0.87849902]
[1721563459882,0.06307566,67055.0,67054.0,0.88549902]
[1721563460287,0.06307566,67055.0,67054.0,0.57823202]
[1721563460699,0.07744323,67055.0,67054.0,0.13083202]
[1721563461102,0.07744323,67055.0,67054.0,0.27996502]
[1721563461309,0.08489517,67055.0,67054.0,0.27996502]
[1721563461512,0.0705276,67055.0,67054.0,0.28896509]
[1721563462045,0.0705276,67055.0,67054.0,0.27296509]
[1721563462243,0.0705276,67055.0,67054.0,0.13083209]
[1721563462455,0.79258886,67055.0,67054.0,0.13083209]
[1721563462654,0.79258886,67055.0,67054.0,0.13983209]
[1721563462655,0.64345786,67055.0,67054.0,0.13983209]
[1721563462886,0.64345786,67055.0,67054.0,0.13983965]
[1721563463091,0.64345786,67055.0,67054.0,0.12383965]
[1721563463502,0.64345786,67055.0,67054.0,0.13283965]
[1721563463940,0.64345786,67055.0,67054.0,0.13284187]
[1721563464268,0.64345786,67055.0,67054.0,0.009]
[1721563464469,0.64345786,67055.0,67054.0,0.13284187]
[1721563464663,0.64345786,67055.0,67054.0,0.12384187]
[1721563465141,0.64345786,67055.0,67054.0,0.13084187]
[1721563465514,0.64345786,67055.0,67054.0,0.12384187]
[1721563465852,0.3002586,67055.0,67054.0,0.13984187]
[1721563467550,0.3002586,67055.0,67054.0,0.13983869]
[1721563470652,0.1511276,67055.0,67054.0,0.016]
[1721563470848,0.1511276,67055.0,67054.0,0.13983702]
[1721563471073,0.21189492,67055.0,67054.0,0.016]
[1721563471280,0.21189492,67055.0,67054.0,0.13983775]
[1721563473412,0.36102592,67055.0,67054.0,0.13983775]
[1721563473843,0.36102592,67055.0,67054.0,0.016]
[1721563474015,0.36102592,67055.0,67054.0,0.13983954]
[1721563475676,0.1511276,67055.0,67054.0,0.13983954]
[1721563476776,0.0078276,67055.0,67054.0,0.13983954]
[1721563476938,0.0078276,67055.0,67054.0,0.28897254]
[1721563477145,0.0078276,67055.0,67054.0,0.2889728]
[1721563477349,0.0078276,67055.0,67054.0,0.1398398]
[1721563478154,0.0078276,67055.0,67054.0,0.1308398]
[1721563478516,0.0078276,67055.0,67054.0,0.1398398]
[1721563478716,0.0078276,67055.0,67054.0,0.1328398]
[1721563478920,0.0078276,67055.0,67054.0,0.1238398]
[1721563479118,0.0078276,67055.0,67054.0,0.1308398]
[1721563479323,0.0078276,67055.0,67054.0,0.1328398]
[1721563479767,0.0078276,67055.0,67054.0,0.2889728]
[1721563480357,0.0078276,67055.0,67054.0,0.28897252]
[1721563481085,0.0078276,67055.0,67054.0,0.58723952]
[1721563481720,0.0078276,67055.0,67054.0,0.57123952]
[1721563481977,0.00736077,67055.0,67054.0,0.58723952]
[1721563482552,0.00736077,67055.0,67054.0,0.58523952]
[1721563482751,0.00736077,67055.0,67054.0,0.59423952]
[1721563485413,0.00736077,67055.0,67054.0,0.57123952]
[1721563485885,0.00736077,67055.0,67054.0,0.58723952]
[1721563487084,0.00736077,67055.0,67054.0,0.57123952]
[1721563487336,0.00736077,67055.0,67054.0,0.27297252]
[1721563488060,0.00736077,67055.0,67054.0,0.27497252]
[1721563488291,0.00736077,67055.0,67054.0,0.27297252]
[1721563488529,0.00736077,67055.0,67054.0,0.27697252]
[1721563488890,0.00736077,67055.0,67054.0,0.58223952]
[1721563489123,0.00736077,67055.0,67054.0,0.57823952]
[1721563489326,0.00736077,67055.0,67054.0,0.58723952]
[1721563489533,0.00736077,67055.0,67054.0,0.58023952]
[1721563490585,0.00736077,67055.0,67054.0,0.58023953]
[1721563491436,0.00736077,67055.0,67054.0,0.28197253]
[1721563492263,0.00736077,67055.0,67054.0,0.27297253]
[1721563492416,0.00736077,67055.0,67054.0,0.27997253]
[1721563493043,0.00736077,67055.0,67054.0,0.149133]
[1721563493244,0.00736077,67055.0,67054.0,0.27296738]
[1721563493544,0.00736077,67055.0,67054.0,0.28896738]
[1721563494111,0.00736077,67055.0,67054.0,0.27996738]
[1721563494337,0.00736077,67055.0,67054.0,0.57823438]
[1721563494949,0.00736077,67055.0,67054.0,0.57123438]
[1721563495358,0.00736077,67055.0,67054.0,0.57823438]
[1721563495558,0.00736077,67055.0,67054.0,0.58723438]
[1721563496371,0.00736077,67055.0,67054.0,0.4634]
[1721563496611,0.00736077,67055.0,67054.0,0.58723448]
[1721563498557,0.00736077,67055.0,67054.0,0.28896748]
[1721563498955,0.33122019,67055.0,67054.0,0.13983448]
[1721563499644,0.37597982,67055.0,67054.0,0.13984208]
[1721563500097,0.37597982,67055.0,67054.0,0.12384208]
[1721563500328,1.08126393,67055.0,67054.0,0.12384208]
[1721563500533,1.401425,67055.0,67054.0,0.001]
[1721563500866,1.23952593,67055.0,67054.0,0.001]
[1721563501089,1.53778793,67055.0,67054.0,0.001]
[1721563501311,1.64967649,67055.0,67054.0,0.001]